[Event "3rd Avagyan Memorial 2022"]
[Site "Jermuk"]
[Date "2022.06.25"]
[Round "6.1"]
[White "Niemann, Hans Moke"]
[Black "Petrosyan, Manuel"]
[Result "1/2-1/2"]
[ECO "C55"]
[WhiteElo "2656"]
[BlackElo "2638"]
[Annotator "TA"]
[PlyCount "136"]
[EventDate "2022.06.20"]
[EventType "tourn"]
[EventCountry "ARM"]
[SourceTitle "playchess.com"]
[Source "ChessBase"]
[SourceQuality "1"]
[TimeControl "40/5400+30:1800+30"]

{[%evp 13,136,29,29,29,27,27,24,24,39,43,32,31,33,37,33,19,46,39,39,35,43,17,29,0,0,0,0,0,0,0,0,0,0,0,0,0,0,0,0,0,0,0,0,0,0,0,0,0,0,0,0,0,0,0,0,0,0,0,0,0,0,0,0,0,0,0,0,0,8,8,40,40,40,40,40,40,40,40,40,40,40,40,40,40,40,40,40,40,40,40,40,40,40,8,40,40,40,40,40,8,8,8,40,40,40,40,40,0,0,0,0,0,0,0,0,0,0,0,0,0,0,0,0,0,0]} 1. e4 {[%emt 0:01:43]} e5 {[%emt 0:00:59]} 2. Nf3 {[%emt 0:00:35]} Nc6 {[%emt 0:00:30]} 3. Bc4 {[%emt 0:00:17]} Nf6 {[%emt 0:00:45]} 4. d3 {[%emt 0:00:26]} Be7 {[%emt 0:01:41]} 5. O-O {[%emt 0:00:44]} O-O {[%emt 0:00:20]} 6. Re1 {[%emt 0:00:07]} d6 {[%emt 0:00:26]} 7. a4 {[%emt 0:00:11]} Na5 {[%emt 0:03:21]} 8. Ba2 {[%emt 0:00:19] C55: Two Knights: 4 d3, 4 d4 exd4 5 e5 and Max Lange Attack.} c5 {[%emt 0:00:08]} 9. c3 {[%emt 0:01:52]} Nc6 {[%emt 0:01:43]} 10. Na3 {[%emt 0:02:47][%cal Bb1a3,Ba3c4,Bc4e3,Be3d5][%mdl 32] White has an edge.} a6 {[%emt 0:08:32][%cal Ba7a6,Ba6b5,Bb5b4][%mdl 32]} 11. Bd2 {[%emt 0:02:50]} Rb8 {[%emt 0:02:25]} 12. Nc4 {[%emt 0:02:56]} b5 {[%emt 0:20:01]} 13. axb5 {[%emt 0:05:50]} axb5 {[%emt 0:00:05]} 14. Ne3 {[%emt 0:00:14]} b4 {[%emt 0:00:11] [#]} 15. Nd5 $146 {[%emt 0:01:57]} ({Predecessor:} 15. h3 Bd7 16. Nh2 bxc3 17. bxc3 Be6 18. Bd5 Qc8 19. Nhg4 Nxg4 20. hxg4 Re8 21. Qa4 {1-0 (30) Gascon del Nogal,J (2496)-Diezma Aganzo,J (2242) Madrid 2018}) 15... Bd7 {[%emt 0:08:21]} 16. h3 {[%emt 0:04:40]} h6 {[%emt 0:00:10]} 17. Kh2 {[%emt 0:03:56]} Nxd5 {[%emt 0:15:59]} 18. exd5 {[%emt 0:02:46]} bxc3 {[%emt 0:00:07]} 19. bxc3 {[%emt 0:00:12]} Na7 {[%emt 0:00:06]} 20. d4 {[%emt 0:08:59]} exd4 {[%emt 0:00:13]} 21. cxd4 {[%emt 0:02:35]} Bf6 {[%emt 0:00:11]} 22. dxc5 {[%emt 0:07:08]} Bxa1 {[%emt 0:04:56]} 23. Qxa1 {[%emt 0:00:09]} dxc5 {[%emt 0:00:16]} 24. Bc3 {[%emt 0:00:55]} f6 {[%emt 0:00:37] White must now prevent ...Nb5.} 25. d6+ {[%emt 0:00:15]} Kh8 {[%emt 0:00:29] And now ...Bf5 would win.} 26. Nh4 {[%emt 0:37:31] Inhibits Bf5.} Be8 $1 {[%emt 0:01:12] [#] Strongly threatening ...Nb5.} (26... Re8 $2 27. Re7 Rxe7 28. dxe7 $18) 27. Rd1 $1 {[%emt 0:00:12][%cal Od6d7]} Nc6 {[%emt 0:17:29] ...Ra8 is the strong threat.} 28. d7 {[%emt 0:08:21]} Bf7 {[%emt 0:02:32] Hoping for ...Ra8.} 29. Bb1 $1 {[%emt 0:00:28]} Ra8 {[%emt 0:08:00]} 30. Qb2 {[%emt 0:00:11] [#] aiming for Qc2.} Qb8+ $1 {[%emt 0:00:03]} 31. Qxb8 {[%emt 0:00:52] The board is on fire.} Raxb8 {[%emt 0:00:02]} 32. Be4 {[%emt 0:02:29] A strong pair of Bishops.} Nd4 {[%emt 0:02:38]} 33. Bxd4 {[%emt 0:01:25]} cxd4 {[%emt 0:00:01]} 34. Rxd4 {[%emt 0:00:06]} Rfd8 {[%emt 0:00:37]} 35. Ng6+ {[%emt 0:01:20]} Bxg6 {[%emt 0:00:07]} 36. Bxg6 $11 {[%emt 0:00:02][%mdl 4096] Endgame KRR-KRB} Kg8 {[%emt 0:00:33]} 37. h4 {[%emt 0:00:30]} Rb7 {[%emt 0:00:41]} 38. Bf5 {[%emt 0:00:10]} h5 {[%emt 0:00:19]} 39. g4 {[%emt 0:00:42]} hxg4 {[%emt 0:01:27]} 40. Kg3 {[%emt 0:00:00]} g6 {[%emt 0:00:00]} 41. Rxg4 {[%emt 0:00:59]} Rbxd7 {[%emt 0:03:30]} ({Don't play} 41... Rb3+ 42. f3 Kf8 43. Rxg6 $16) (41... g5 {is interesting.} 42. hxg5 fxg5 43. Rxg5+ Kf7) 42. Bxd7 {[%emt 0:00:07]} Rxd7 {[%emt 0:00:04]} 43. Rxg6+ {[%emt 0:00:04] KR-KR} Kf7 {[%emt 0:00:03]} 44. Rg4 {[%emt 0:00:25]} Rd5 {[%emt 0:02:52]} 45. Kf3 {[%emt 0:00:19]} Rf5+ {[%emt 0:01:50]} 46. Rf4 {[%emt 0:00:06]} Ra5 {[%emt 0:00:09]} 47. Kg4 {[%emt 0:00:17]} Kg6 {[%emt 0:00:18]} 48. Rd4 {[%emt 0:00:13]} Rb5 {[%emt 0:00:19]} 49. Kg3 {[%emt 0:00:36]} Rb3+ {[%emt 0:00:56]} 50. f3 {[%emt 0:00:17]} Rb5 {[%emt 0:00:08]} 51. Rg4+ {[%emt 0:00:04]} Kf7 {[%emt 0:00:17]} 52. Kh3 {[%emt 0:00:14]} Rf5 {[%emt 0:02:37]} 53. Rg3 {[%emt 0:00:08]} Ra5 {[%emt 0:00:22]} 54. Rg2 {[%emt 0:00:20]} Rb5 55. Rh2 {[%emt 0:00:30]} Kg6 56. Kg4 {[%emt 0:00:30]} Rb4+ 57. Kg3 {[%emt 0:00:30]} Rb5 58. Ra2 {[%emt 0:00:30]} Rc5 59. Ra6 {[%emt 0:00:30]} Rb5 60. Kg4 {[%emt 0:00:30]} Rb4+ {The position is equal.} 61. f4 {[%emt 0:00:30]} Rb5 {Prevents h5+.} 62. Ra3 {[%emt 0:00:30]} f5+ 63. Kh3 {[%emt 0:00:30]} Rb4 64. Rg3+ {[%emt 0:00:30]} Kh6 65. Rf3 {[%emt 0:00:30]} (65. Rg5 $5 {[%cal Rg5f5]}) 65... Kh5 66. Kg3 {[%emt 0:00:30]} Rb8 67. Kh3 {[%emt 0:00:30]} Rb4 68. Kg3 {[%emt 0:00:30]} Rb8 {Weighted Error Value: White=0.03 (flawless) /Black=0.03 (flawless)} 1/2-1/2

[Event "3rd Avagyan Memorial 2022"]
[Site "Jermuk"]
[Date "2022.06.25"]
[Round "6.2"]
[White "Martirosyan, Haik M."]
[Black "Ter-Sahakyan, Samvel"]
[Result "1-0"]
[ECO "E00"]
[WhiteElo "2652"]
[BlackElo "2640"]
[Annotator "TA"]
[PlyCount "77"]
[EventDate "2022.06.20"]
[EventType "tourn"]
[EventCountry "ARM"]
[SourceTitle "playchess.com"]
[Source "ChessBase"]
[SourceQuality "1"]
[TimeControl "40/5400+30:1800+30"]

{[%evp 13,77,1,8,12,-11,9,9,18,17,-13,37,48,74,81,78,25,14,0,0,0,62,57,54,51,55,45,75,87,73,80,86,69,67,61,78,47,62,69,65,70,78,75,124,116,125,114,115,114,120,114,115,120,115,94,103,91,209,196,187,181,181,172,310,312,307,260]} 1. d4 {[%emt 0:00:03]} Nf6 {[%emt 0:00:07]} 2. c4 {[%emt 0:00:22]} e6 {[%emt 0:00:06]} 3. Bg5 {[%emt 0:00:23][%cal Bc1g5,Bg5h4,Bh4g3][%mdl 32]} h6 {[%emt 0:22:39]} 4. Bh4 {[%emt 0:00:13]} Bb4+ {[%emt 0:00:04]} 5. Nd2 {[%emt 0:01:08]} g5 {[%emt 0:14:13]} 6. Bg3 {[%emt 0:00:13]} Ne4 {[%emt 0:00:04]} 7. Ngf3 {[%emt 0:00:13]} Nc6 {[%emt 0:02:31][%cal Oc6d4]} 8. a3 {[%emt 0:01:00] E00: Catalan Bogo-Indian (3 g3 Bb4+).} Bxd2+ {[%emt 0:03:24]} 9. Nxd2 {[%emt 0:00:15]} Nxg3 {[%emt 0:00:02]} 10. hxg3 {[%emt 0:00:09][%cal Bh2g3,Bg3g4][%mdl 32] The position is equal.} Nxd4 {[%emt 0:02:16]} 11. Ne4 {[%emt 0:00:24]} Nf5 {[%emt 0:18:35] [#]} ({Better is} 11... Nc6 $11) 12. g4 $146 {[%emt 0:10:28]} ({Predecessor:} 12. Qd2 f6 13. c5 d5 14. cxd6 Nxd6 15. Rd1 Qe7 16. Nxd6+ cxd6 17. Qxd6 Qxd6 18. Rxd6 Ke7 19. Rd2 Bd7 20. e3 Bc6 {½-½ (20) Schoenbuchner,G (2095)-Valverde Toresano,A (2290) IECG email 1997}) 12... d5 {[%emt 0:03:00]} 13. cxd5 {[%emt 0:12:29] White is more active.} exd5 {[%emt 0:00:23]} 14. Nc3 {[%emt 0:19:19]} (14. gxf5 $16 dxe4 15. Qa4+ Kf8 16. g4) 14... d4 $11 {[%emt 0:10:34]} 15. Qa4+ {[%emt 0:06:34]} Bd7 {[%emt 0:13:30]} 16. Qa5 {[%emt 0:02:53]} c5 {[%emt 0:00:05]} 17. Qxc5 $14 {[%emt 0:01:26]} Qe7 {[%emt 0:00:03] Prevents Qe5.} 18. Qxe7+ {[%emt 0:01:06]} Nxe7 {[%emt 0:00:24]} 19. Ne4 {[%emt 0:00:10]} Nc6 {[%emt 0:00:21]} 20. Nxg5 $1 {[%emt 0:01:39]} Bxg4 {[%emt 0:01:03]} 21. Rh4 {[%emt 0:01:16]} h5 {[%emt 0:01:38]} 22. f3 {[%emt 0:00:49]} Bf5 {[%emt 0:00:09]} 23. b4 {[%emt 0:02:39]} a6 {[%emt 0:01:02]} 24. Rc1 {[%emt 0:00:48]} Ke7 {[%emt 0:01:45]} 25. Rc5 {[%emt 0:01:12]} Bg6 {[%emt 0:00:13]} 26. Nh3 {[%emt 0:00:49]} Rad8 {[%emt 0:02:01]} 27. Nf4 {[%emt 0:00:06]} Rd6 {[%emt 0:00:07]} (27... Rhe8 $142) 28. g4 $16 {[%emt 0:01:31]} b6 {[%emt 0:02:04]} 29. Nd5+ {[%emt 0:03:26]} Ke6 {[%emt 0:00:04]} 30. Nxb6 {[%emt 0:00:09]} Nxb4 {[%emt 0:00:38] Hoping for ...Nc2+.} 31. Nc4 $36 {[%emt 0:01:10][%mdl 2048] White is on the roll.} Nc2+ {[%emt 0:00:17]} 32. Kd2 {[%emt 0:00:12]} Rd5 {[%emt 0:00:54]} 33. Rxd5 {[%emt 0:04:36] Chess con chili.} (33. Rc6+ {with more complications.} Ke7 34. f4 Ne3 35. Nxe3 dxe3+ 36. Kxe3 Re8 37. Rxa6 hxg4 38. Rxg4 Kf8+ 39. Kf2) 33... Kxd5 {[%emt 0:00:03] [#]} 34. gxh5 $1 {[%emt 0:00:24]} Bh7 {[%emt 0:00:50]} (34... Kxc4 $2 {[#]} 35. hxg6 $1 Rxh4 36. g7 $18) (34... Rxh5 $2 35. Rxh5+ Bxh5 36. e4+ (36. Kxc2 Kxc4 37. e3+ Kc5 $11) 36... dxe3+ 37. Kxc2 $18) (34... Bxh5 $16 {might work better.} 35. Nb2 (35. e4+ dxe3+ 36. Nxe3+ Nxe3 $16) 35... Nxa3) 35. e4+ $18 {[%emt 0:00:48]} dxe3+ {[%emt 0:00:14]} 36. Nxe3+ {[%emt 0:00:07]} Nxe3 {[%emt 0:00:04]} 37. Kxe3 {[%emt 0:00:05] Ra4 is the strong threat.} Rc8 {[%emt 0:02:25]} (37... Kd6 {was necessary.} 38. Rd4+ (38. Bxa6 Ra8 $18) 38... Ke7) 38. Ra4 {[%emt 0:02:01]} ({Resist} 38. Bxa6 $6 Rc3+ 39. Kf2 Rxa3 $18) ({Don't take} 38. Rd4+ $6 Ke5 $18) 38... Rc1 {[%emt 0:00:46]} 39. Ra5+ {[%emt 0:02:33] Weighted Error Value: White=0.05 (flawless) /Black=0.22 (precise)} 1-0

[Event "3rd Avagyan Memorial 2022"]
[Site "Jermuk"]
[Date "2022.06.25"]
[Round "6.4"]
[White "Gharibyan, Mamikon"]
[Black "Nguyen, Thai Dai Van"]
[Result "1/2-1/2"]
[ECO "D12"]
[WhiteElo "2487"]
[BlackElo "2612"]
[Annotator "TA"]
[PlyCount "110"]
[EventDate "2022.06.20"]
[EventType "tourn"]
[EventCountry "ARM"]
[SourceTitle "playchess.com"]
[Source "ChessBase"]
[SourceQuality "1"]
[TimeControl "40/5400+30:1800+30"]

{[%evp 13,110,31,28,20,24,9,12,4,23,10,10,8,9,14,32,26,28,13,26,24,21,21,29,15,30,22,47,11,31,38,24,17,45,26,88,75,94,91,94,94,174,177,166,151,165,82,142,138,149,128,164,163,162,99,103,24,24,42,177,119,119,119,119,119,119,119,5065,119,119,67,73,74,83,74,244,252,252,244,243,236,224,221,205,0,79,89,326,66,66,66,66,42,49,97,139,2,42,2,2]} 1. d4 {[%emt 0:00:04]} d5 {[%emt 0:03:25]} 2. c4 {[%emt 0:00:28]} c6 {[%emt 0:00:10]} 3. Nf3 {[%emt 0:00:24]} Nf6 {[%emt 0:00:27]} 4. e3 {[%emt 0:00:14]} Bf5 {[%emt 0:00:28]} 5. Nc3 {[%emt 0:00:13]} e6 {[%emt 0:00:10]} 6. Nh4 {[%emt 0:00:16]} Bg6 {[%emt 0:00:11]} 7. Nxg6 {[%emt 0:00:26]} hxg6 {[%emt 0:00:08]} 8. g3 {[%emt 0:01:15] Recently 8.Rb1 got a lot of attention. D12: Slav Defence: 3 Nf3 Nf6 4 e3 Bf5.} Nbd7 {[%emt 0:01:17]} 9. Qc2 {[%emt 0:02:21]} Bb4 {[%emt 0:02:07]} 10. Bd2 {[%emt 0:06:18]} Bxc3 {[%emt 0:04:47]} 11. Bxc3 {[%emt 0:00:47]} Ne4 {[%emt 0:00:06]} 12. Bg2 {[%emt 0:08:14]} Nxc3 {[%emt 0:02:17]} 13. Qxc3 {[%emt 0:01:29] [#]} a5 $146 {[%emt 0:04:37]} ({Predecessor:} 13... f5 14. O-O-O Nb6 15. b3 Qe7 16. Kb1 a5 17. c5 Nd7 18. f3 Kf7 19. e4 Rhb8 {0-1 (49) Tregubov,P (2646)-Wang,Y (2736) Kallithea 2008}) 14. O-O {[%emt 0:03:50]} O-O {[%emt 0:00:10]} 15. b3 {[%emt 0:10:16]} Qe7 {[%emt 0:02:09]} 16. a3 {[%emt 0:05:25]} Rfc8 {[%emt 0:16:09]} 17. Rfb1 {[%emt 0:06:31]} Nf6 {[%emt 0:03:05]} 18. a4 {[%emt 0:15:06]} g5 {[%emt 0:05:51]} 19. h3 {[%emt 0:06:41]} c5 {[%emt 0:14:09]} 20. cxd5 {[%emt 0:01:54]} exd5 {[%emt 0:00:13]} 21. dxc5 {[%emt 0:02:41]} Rxc5 {[%emt 0:00:07]} 22. Qe1 {[%emt 0:02:00]} Rac8 {[%emt 0:01:11]} 23. b4 {[%emt 0:01:37]} Rc2 {[%emt 0:10:36]} (23... axb4 $11 24. Rxb4 R8c7) 24. bxa5 $16 {[%emt 0:00:53]} Ne4 {[%emt 0:00:09]} 25. Bxe4 {[%emt 0:02:18]} dxe4 {[%emt 0:00:18]} 26. Rc1 {[%emt 0:02:13]} Qe6 {[%emt 0:08:50]} (26... Qd7 $16 {was called for.}) 27. Rxc2 $18 {[%emt 0:06:37]} Rxc2 {[%emt 0:00:02][%mdl 4096] Endgame KQR-KQR} 28. Qd1 {[%emt 0:04:49]} Rc5 {[%emt 0:09:38]} 29. Kg2 {[%emt 0:07:27]} (29. Rb1 $18 {and White stays clearly on top.}) 29... Rd5 {[%emt 0:05:20]} (29... Qf5 $142) 30. Qb3 $16 {[%emt 0:00:49]} Qd7 {[%emt 0:00:30]} 31. Qb4 {[%emt 0:00:49]} Qf5 {[%emt 0:04:22]} 32. Qxb7 {[%emt 0:00:44]} Rxa5 {[%emt 0:00:09]} 33. Qb4 {[%emt 0:01:00]} (33. Kg1 $18) 33... Ra6 {[%emt 0:01:01]} 34. Qe1 {[%emt 0:00:49]} (34. Kg1 $16) 34... Rh6 $11 {[%emt 0:00:35]} 35. Qh1 {[%emt 0:00:22]} Ra6 {[%emt 0:01:06]} (35... Rd6 $14) 36. Qf1 {[%emt 0:00:29]} (36. Qd1 $1 $18) 36... Rh6 $16 {[%emt 0:00:10]} 37. g4 $1 $36 {[%emt 0:00:38][%mdl 2048] White is in control.} ({Much weaker is} 37. Kh2 $6 g4 $11) 37... Qf3+ {[%emt 0:00:27][%mdl 64] Deflection, Double Attack} 38. Kg1 $1 {[%emt 0:00:29] a5 is the strong threat.} ({Of course not} 38. Kh2 $6 Qxg4 39. a5 Qf3 $11) 38... Rxh3 {[%emt 0:01:49][%csl Gh3][%cal Rf3h1]} 39. Qg2 {[%emt 0:00:01] Prevents Qh1+.} Qxg2+ {[%emt 0:01:09]} 40. Kxg2 {[%emt 0:00:00] KR-KR} Rh6 {[%emt 0:00:00]} 41. a5 {[%emt 0:07:11]} (41. Rd1 $16) 41... Ra6 $14 {[%emt 0:00:10]} 42. Kf1 {[%emt 0:00:25]} Kf8 {[%emt 0:27:32]} 43. Ra4 {[%emt 0:00:30]} Ke7 $2 (43... f5 $16 {is a better defense.}) 44. Rxe4+ $18 {[%emt 0:00:30]} Kd6 {[%emt 0:01:00]} 45. Ra4 {[%emt 0:00:30]} Kc5 46. Kg2 {[%emt 0:00:30]} Kb5 {[%emt 0:01:00]} 47. Rd4 {[%emt 0:00:30]} Kc5 {[%emt 0:00:30] [#]} 48. Ra4 {[%emt 0:00:30]} ({Don't take} 48. Rd7 $6 f6 $16) (48. Re4 $1 $18 {is the precise move to win.}) 48... Kb5 $16 {[%emt 0:00:30] [#]} 49. Re4 {[%emt 0:00:30] Hoping for Re5+.} Kc5 $2 {[%emt 0:00:30]} (49... f6 $16) 50. Re7 $2 {[%emt 0:00:30]} (50. Re5+ $18 Kb4 51. Rxg5) 50... f6 $14 51. Rxg7 {[%emt 0:00:30]} Kd6 $1 52. f4 {[%emt 0:00:30]} gxf4 {[%emt 0:01:30]} 53. exf4 {[%emt 0:00:30]} Rxa5 {[%emt 0:00:30]} 54. f5 {[%emt 0:00:30]} ({Better is} 54. Kf3 $16) 54... Ra3 $11 {[%emt 0:00:30]} 55. g5 {[%emt 0:00:30] Threatens to win with Rg6.} Ke5 {[%emt 0:00:15] Weighted Error Value: White=0.32/Black=0.26 (precise)} 1/2-1/2

[Event "3rd Avagyan Memorial 2022"]
[Site "Jermuk"]
[Date "2022.06.25"]
[Round "6.5"]
[White "Nihal Sarin"]
[Black "Donchenko, Alexander"]
[Result "1/2-1/2"]
[ECO "D12"]
[WhiteElo "2646"]
[BlackElo "2599"]
[Annotator "TA"]
[PlyCount "35"]
[EventDate "2022.06.20"]
[EventType "tourn"]
[EventCountry "ARM"]
[SourceTitle "playchess.com"]
[Source "ChessBase"]
[SourceQuality "1"]
[TimeControl "40/5400+30:1800+30"]

{[%evp 11,35,5,13,2,6,10,11,11,6,11,4,0,0,0,0,0,0,0,6,3,10,7,12,0,8,0]} 1. d4 {[%emt 0:01:07]} d5 {[%emt 0:00:08]} 2. c4 {[%emt 0:00:35]} c6 {[%emt 0:00:07]} 3. Nf3 {[%emt 0:05:46]} Nf6 {[%emt 0:00:13]} 4. e3 {[%emt 0:02:01]} Bf5 {[%emt 0:00:14]} 5. Nc3 {[%emt 0:00:07]} e6 {[%emt 0:00:07]} 6. Be2 {[%emt 0:00:04]} h6 {[%emt 0:00:41] The position is equal.} 7. Bd3 {[%emt 0:00:05] D12: Slav Defence: 3 Nf3 Nf6 4 e3 Bf5.} Bxd3 {[%emt 0:00:19]} 8. Qxd3 {[%emt 0:00:06]} Be7 {[%emt 0:00:21]} 9. O-O {[%emt 0:00:07]} O-O {[%emt 0:00:19]} 10. Rd1 {[%emt 0:12:12]} Nbd7 {[%emt 0:04:34]} 11. e4 {[%emt 0:00:36]} dxe4 {[%emt 0:02:03]} 12. Nxe4 {[%emt 0:00:07] [#]} c5 $146 {[%emt 0:04:08]} ({Predecessor:} 12... Nxe4 13. Qxe4 Re8 14. Bf4 Qa5 15. Rd3 Qf5 16. Qxf5 exf5 17. Re1 g5 18. Rde3 Kf8 19. Rxe7 Rxe7 {1-0 (48) Erdogdu,M (2409)-Soysal,S (2402) Suleymanpasa 2017}) 13. Be3 {[%emt 0:09:08][%cal Rd4c5]} cxd4 {[%emt 0:28:19]} 14. Bxd4 {[%emt 0:01:25]} Qc7 {[%emt 0:01:02]} 15. b3 {[%emt 0:09:55]} Rfd8 {[%emt 0:01:35]} 16. Nxf6+ {[%emt 0:01:39]} Bxf6 {[%emt 0:00:45]} 17. Bxf6 {[%emt 0:09:38]} Nxf6 {[%emt 0:00:15]} 18. Qe2 {[%emt 0:00:03] An even fight not without its subleties.  Weighted Error Value: White=0.03 (flawless) /Black=0.02 (flawless)} 1/2-1/2

[Event "3rd Avagyan Memorial 2022"]
[Site "Jermuk"]
[Date "2022.06.26"]
[Round "7.1"]
[White "Donchenko, Alexander"]
[Black "Niemann, Hans Moke"]
[Result "1-0"]
[ECO "E11"]
[WhiteElo "2599"]
[BlackElo "2656"]
[Annotator "TA"]
[PlyCount "62"]
[EventDate "2022.06.20"]
[EventType "tourn"]
[EventCountry "ARM"]
[SourceTitle "playchess.com"]
[Source "ChessBase"]
[SourceQuality "1"]
[TimeControl "40/5400+30:1800+30"]

{[%evp 13,62,12,11,-4,7,0,0,0,14,13,4,-12,2,0,0,-1,35,18,22,25,42,20,20,9,25,0,0,0,19,26,50,-42,-28,-27,268,283,272,270,283,282,269,256,272,263,491,484,875,870,29992,29993,29993]} 1. d4 {[%emt 0:00:03]} Nf6 {[%emt 0:00:27]} 2. c4 {[%emt 0:00:07]} e6 {[%emt 0:00:19]} 3. g3 {[%emt 0:00:11]} d5 {[%emt 0:01:03]} 4. Bg2 {[%emt 0:00:07]} Bb4+ {[%emt 0:00:20]} 5. Bd2 {[%emt 0:00:22]} Be7 {[%emt 0:00:10]} 6. Nf3 {[%emt 0:00:07]} O-O {[%emt 0:00:09]} 7. O-O {[%emt 0:00:08]} Nbd7 {[%emt 0:00:23]} 8. c5 {[%emt 0:00:20] E11: Bogo-Indian.} Ne4 {[%emt 0:00:31]} 9. Nc3 {[%emt 0:00:15]} f5 {[%emt 0:00:07]} 10. Bf4 {[%emt 0:00:23] [#] The position is equal.} g5 $146 {[%emt 0:05:43]} ({Predecessor:} 10... c6 11. Ne5 Qe8 12. Nxd7 Bxd7 13. Be5 Bf6 14. Bxf6 Rxf6 15. e3 g5 16. Nxe4 dxe4 17. Qb3 {0-1 (16) Redin,J-Acosta,A San Sebastian 1996}) 11. Be3 {[%emt 0:00:32]} c6 {[%emt 0:01:14]} 12. Nxe4 {[%emt 0:00:29]} fxe4 {[%emt 0:06:17]} 13. Ne5 {[%emt 0:00:17]} Nxe5 {[%emt 0:06:54]} 14. dxe5 {[%emt 0:00:19]} Qe8 {[%emt 0:00:12]} 15. f3 {[%emt 0:23:55]} exf3 {[%emt 0:00:36]} 16. exf3 {[%emt 0:00:09]} Qg6 {[%emt 0:01:01]} 17. Rf2 {[%emt 0:01:45]} Bd7 {[%emt 0:01:43]} 18. Bf1 {[%emt 0:06:14]} Be8 {[%emt 0:00:23]} 19. b4 {[%emt 0:08:36]} Qg7 {[%emt 0:05:34]} 20. Qd2 {[%emt 0:09:35]} Rd8 {[%emt 0:09:22]} (20... Bg6 $5 {[%cal Rg7e5]}) 21. a4 {[%emt 0:09:49]} Bh5 {[%emt 0:06:32]} 22. g4 {[%emt 0:01:36]} ({White should play} 22. Bh3 $14) 22... d4 $15 {[%emt 0:03:16] Strongly threatening ...Be8.} 23. gxh5 {[%emt 0:02:16]} (23. Bxd4 Rf4 24. gxh5 Rdxd4 $17) 23... Qxe5 $2 {[%emt 0:01:34][%mdl 8192] [#] A mistake that costs the game.} (23... dxe3 $11 {and Black stays safe.} 24. Qxe3 Rd5) 24. Bxg5 $1 $18 {[%emt 0:02:54][%mdl 512]} Bxg5 {[%emt 0:00:42]} (24... Qxg5+ $2 25. Rg2 Kh8 26. Rxg5 $18) 25. Rg2 {[%emt 0:00:06]} h6 {[%emt 0:03:17] [#] Threatens to win with ...d3.} 26. h4 $1 {[%emt 0:01:25][%cal Bh2h4,Bh4g5,Bg5h6][%mdl 32]} d3 {[%emt 0:00:07] [#]} 27. Re1 {[%emt 0:01:34]} (27. Qe1 Qd4+ 28. Kh2 Rf4 29. Qxe6+ Kh8 30. hxg5 Rh4+ 31. Kg3 Qf4+ 32. Kf2 Qd4+ 33. Kg3 Qf4+ 34. Kf2 Qd4+ 35. Kg3 $11) 27... Qd4+ {[%emt 0:00:18]} 28. Qf2 {[%emt 0:00:08]} Qc3 $2 {[%emt 0:21:13]} (28... d2 29. Rd1 Qc3) 29. Qe3 {[%emt 0:06:48]} (29. hxg5 d2 30. Rd1 (30. gxh6+ Kh7 $16) 30... Rxf3 31. Rxd2 Rdf8 $16) 29... Qb3 {[%emt 0:07:31]} (29... Qd4 $142 30. Qxd4 (30. hxg5 Qxe3+ 31. Rxe3 d2 $18) 30... Rxd4) 30. hxg5 {[%emt 0:01:03]} d2 {[%emt 0:00:06]} 31. gxh6+ {[%emt 0:00:15]} ({Worse is} 31. Qxb3 dxe1=Q 32. Re2 (32. gxh6+ $2 Kh7 $19) 32... Qg3+ 33. Bg2 (33. Rg2 $2 Qe5 $19) 33... Qxg5 34. Rxe6 Qxh5 35. Rxc6+ Rf7 $19) 31... Kh7 {[%emt 0:00:09] Weighted Error Value: White=0.10 (very precise) /Black=0.74} 1-0